fUST/lending_fUST_20260131
["ID","MTS","AMOUNT","RATE_DAILY","PERIOD"]
[404091035,1769814638454,-5808.20757398,0.00018278,2]
[404091036,1769814638465,-300.8243982,0.00018904,2]
[404091037,1769814638474,-711.7422352,0.00019155,2]
[404091038,1769814638483,-500.0,0.0001917,2]
[404091039,1769814638492,-244.7542082,0.0001917,2]
[404091040,1769814638501,-500.0,0.0001917,2]
[404091041,1769814638511,-500.0,0.0001917,2]
[404091042,1769814638521,-525.23416602,0.0001917,2]
[404091043,1769814638530,-325.25497487,0.0001917,2]
[404091044,1769814638540,-3578.8388737,0.00019171,2]
[404091045,1769814638549,-1000.0,0.00019269,2]
[404091046,1769814638558,-1041.66666667,0.0001928,2]
[404091048,1769814638568,-1957.856,0.0001962,2]
[404091049,1769814638578,-2515.14529455,0.0001962,2]
[404091050,1769814638587,-1183.99870545,0.00019675,2]
[404091051,1769814638597,-179.0,0.00019727,2]
[404091053,1769814638606,-171.0,0.00019936,2]
[404091054,1769814638616,-501.0,0.00019986,2]
[404091055,1769814638626,-500.0,0.00019986,2]
[404091056,1769814638637,-500.0,0.00019986,2]
[404091057,1769814638646,-177.0,0.00020186,2]
[404091058,1769814638655,-341.905,0.00020469,2]
[404091059,1769814638665,-216.06470074,0.00020469,2]
[404091060,1769814638675,-205.53948841,0.000205,2]
[404091061,1769814638684,-202.15552574,0.000209,2]
[404091062,1769814638693,-500.0,0.00020989,2]
[404091063,1769814638703,-341.16,0.0002099,3]
[404091064,1769814638713,-500.0,0.00020999,2]
[404091065,1769814638722,-500.0,0.00020999,2]
[404091066,1769814638731,-500.0,0.00020999,2]
[404091067,1769814638740,-500.0,0.00020999,2]
[404091068,1769814638750,-500.0,0.00020999,2]
[404091069,1769814638760,-500.0,0.00020999,2]
[404091070,1769814638770,-500.0,0.00020999,2]
[404091071,1769814638779,-500.0,0.00020999,2]
[404091072,1769814638789,-283.53030341,0.00020999,2]
[404091073,1769814638798,-36346.69682811,0.00021,2]
[404091074,1769814638813,-5957.20845179,0.00021,2]
[404091106,1769814640671,-246.99019133,0.00021,2]
[404091339,1769814646485,-2131.31877144,0.00021,2]
[404091340,1769814646665,-64584.89278118,0.00021,2]
[404091341,1769814646675,-16321.22200626,0.00021,2]
[404091342,1769814646685,-702.0,0.00021,6]
[404091343,1769814646694,-1172.84,0.00021,2]
[404091344,1769814646703,-3000.0,0.00021,2]
[404091345,1769814646713,-1000.0,0.00021,2]
[404091346,1769814646723,-3000.0,0.0002101,2]
[404091347,1769814646732,-3000.0,0.0002102,2]
[404091348,1769814646742,-3000.0,0.0002103,2]
[404091349,1769814646752,-500.0,0.00021039,2]
[404091350,1769814646762,-3000.0,0.0002104,2]
[404091351,1769814646771,-3000.0,0.0002105,2]
[404091352,1769814646780,-3000.0,0.0002106,2]
[404091353,1769814646789,-3000.0,0.0002107,2]
[404091354,1769814646798,-3000.0,0.0002108,2]
[404091355,1769814646807,-3000.0,0.0002109,2]
[404091356,1769814646816,-3000.0,0.000211,2]
[404091357,1769814646827,-151.0,0.000211,2]
[404091358,1769814646837,-151.0,0.000211,2]
[404091359,1769814646846,-151.0,0.000211,2]
[404091360,1769814646855,-151.0,0.000211,2]
[404091361,1769814646865,-151.0,0.000211,2]
[404091362,1769814646874,-500.0,0.00021109,2]
[404091363,1769814646884,-3000.0,0.0002111,2]
[404091364,1769814646893,-3000.0,0.0002112,2]
[404091365,1769814646904,-3000.0,0.0002113,2]
[404091366,1769814646913,-3000.0,0.0002114,2]
[404091367,1769814646922,-3000.0,0.0002115,2]
[404091368,1769814646931,-202.15552574,0.0002115,2]
[404091369,1769814646941,-3000.0,0.0002116,2]
[404091370,1769814646950,-3000.0,0.0002117,2]
[404091371,1769814646959,-500.0,0.00021179,2]
[404091372,1769814646968,-3000.0,0.0002118,2]
[404091373,1769814646977,-1899.54677755,0.0002119,2]
[404091403,1769815832596,-5000.0,0.00011842,2]
[404091404,1769815832608,-5000.0,0.00011962,2]
[404091405,1769815832621,-1882.0,0.00012329,2]
[404091406,1769815832633,-177.0,0.00014023,2]
[404091407,1769815832644,-204.0,0.00016023,2]
[404091408,1769815832655,-1900.40940353,0.0001747,2]
[404091409,1769815832667,-300.0,0.00018021,2]
[404091410,1769815832677,-300.0,0.00018021,2]
[404091411,1769815832688,-300.0,0.00018021,2]
[404091412,1769815832699,-300.0,0.00018021,2]
[404091413,1769815832709,-231.0,0.00018023,2]
[404091414,1769815832722,-258.0,0.00020023,2]
[404091415,1769815832736,-179.0,0.00020037,2]
[404091416,1769815832747,-1000.0,0.00020231,2]
[404091417,1769815832758,-320.0,0.00020725,2]
[404091418,1769815832768,-1041.66666667,0.00020933,2]
[404091419,1769815832780,-7425.04632476,0.0002115,2]
[404091420,1769815832792,-1100.45322245,0.0002119,2]
[404091421,1769815832803,-3000.0,0.000212,2]
[404091422,1769815832816,-169.47046289,0.00021209,2]
[404091428,1769815832992,-3000.0,0.0002121,2]
[404091431,1769815833014,-3000.0,0.0002122,2]
[404091433,1769815833031,-3000.0,0.0002123,2]
[404091435,1769815833041,-3000.0,0.0002124,2]
[404091437,1769815833050,-3000.0,0.0002125,2]
[404091439,1769815833060,-3000.0,0.0002126,2]
[404091441,1769815833076,-273.524,0.0002126,2]
[404091443,1769815833085,-3000.0,0.0002127,2]
[404091445,1769815833099,-3335.909266,0.0002128,2]
[404091447,1769815833118,-600.0,0.00021419,10]
[404091449,1769815833128,-754.8883619,0.00021507,2]
[404091451,1769815833137,-500.0,0.00021856,2]
[404091453,1769815833147,-389.72311082,0.000219,2]
[404091455,1769815833156,-6789.57,0.0002198,10]
[404091457,1769815833170,-548.47121238,0.00021989,2]
[404091459,1769815833179,-11732.38,0.0002199,10]
[404091461,1769815833188,-9776.98,0.0002199,10]
[404091463,1769815833197,-8147.49,0.0002199,10]
[404091465,1769815833209,-1554.178045,0.0002199,2]
[404091467,1769815833218,-1554.178045,0.0002199,2]
[404091469,1769815833228,-1554.178045,0.0002199,2]
[404091471,1769815833239,-1554.178045,0.0002199,2]
[404091473,1769815833248,-1554.178045,0.0002199,2]
[404091475,1769815833259,-1554.178045,0.0002199,2]
[404091477,1769815833268,-1554.178045,0.0002199,2]
[404091479,1769815833277,-1554.178045,0.0002199,2]
[404091481,1769815833287,-151.0,0.0002199,2]
[404091483,1769815833296,-151.0,0.0002199,2]
[404091485,1769815833305,-226.2882,0.0002199,2]
[404091487,1769815833314,-226.2882,0.0002199,2]
[404091489,1769815833324,-151.0,0.0002199,2]
[404091491,1769815833335,-151.0,0.0002199,2]
[404091493,1769815833344,-226.2882,0.0002199,2]
[404091495,1769815833355,-226.2882,0.0002199,2]
[404091497,1769815833364,-151.0,0.0002199,2]
[404091499,1769815833374,-180.102436,0.0002199,2]
[404091501,1769815833382,-226.2882,0.0002199,2]
[404091503,1769815833392,-226.2882,0.0002199,2]
[404091505,1769815833401,-226.2882,0.0002199,2]
[404091507,1769815833411,-226.2882,0.0002199,2]
[404091509,1769815833420,-1000.0,0.00022,4]
[404091511,1769815833431,-1000.0,0.00022,6]
[404091513,1769815833440,-358.55,0.00022,7]
[404091515,1769815833449,-140679.67834968,0.00022,2]
[404091517,1769815833458,-1055.56,0.00022,14]
[404091519,1769815833467,-1554.178045,0.00022,2]
[404091521,1769815833476,-1554.178045,0.00022,2]
[404091523,1769815833486,-1554.178045,0.00022,2]
[404091525,1769815833495,-1554.178045,0.00022,2]
[404091527,1769815833505,-151.0,0.00022,2]
[404091529,1769815833514,-226.2882,0.00022,2]
[404091531,1769815833524,-151.0,0.00022,2]
[404091533,1769815833533,-226.2882,0.00022,2]
[404091535,1769815833545,-226.2882,0.00022,2]
[404091537,1769815833554,-226.2882,0.00022,2]
[404091539,1769815833564,-5774.04635951,0.00022,2]
[404091541,1769815833573,-285.0,0.00022023,2]
[404091543,1769815833583,-389.72311082,0.00022222,2]
[404091545,1769815833592,-256.57585535,0.0002226,2]
[404091547,1769815833602,-160.96,0.000224,2]
[404091549,1769815833611,-300.0,0.00022466,2]
[404091551,1769815833622,-389.72311082,0.00022544,2]
[404091553,1769815833632,-389.72311082,0.00022866,2]
[404091555,1769815833641,-500.0,0.00022948,2]
[404091557,1769815833650,-200.0,0.00023,2]
[404091559,1769815833660,-158.0,0.00023,7]
[404091561,1769815833669,-450.0,0.00023014,2]
[404091563,1769815833679,-179.0,0.00023037,2]
[404091565,1769815833688,-7425.04632472,0.00023107,2]
[404091567,1769815833697,-389.72311082,0.00023188,2]
[404091569,1769815833706,-151.0,0.00023288,2]
[404091571,1769815833716,-151.0,0.00023288,2]
[404091573,1769815833727,-151.0,0.00023288,2]
[404091575,1769815833736,-151.0,0.00023288,2]
[404091577,1769815833746,-151.0,0.00023288,2]
[404091579,1769815833756,-151.0,0.00023288,2]
[404091581,1769815833766,-65.20563495,0.00023288,2]
[404091655,1769815838585,-383.92984867,0.00021279,2]
[404091657,1769815838594,-85.79436505,0.00023288,2]
[404091658,1769815838604,-151.0,0.00023288,2]
[404091660,1769815838614,-151.0,0.00023288,2]
[404091662,1769815838623,-162.128375,0.00023288,2]
[404091664,1769815838632,-151.0,0.00023288,2]
[404091666,1769815838641,-151.0,0.00023288,2]
[404091668,1769815838651,-151.0,0.00023288,2]
[404091670,1769815838661,-199.884507,0.00023288,2]
[404091672,1769815838670,-165.087625,0.00023288,2]
[404091673,1769815838679,-151.0,0.00023288,2]
[404091674,1769815838688,-151.0,0.00023288,2]
[404091675,1769815838697,-151.0,0.00023288,2]
[404091676,1769815838706,-151.0,0.00023288,2]
[404091677,1769815838715,-151.0,0.00023288,2]
[404091678,1769815838724,-151.0,0.00023288,2]
[404091679,1769815838733,-151.0,0.00023288,2]
[404091680,1769815838742,-151.0,0.00023288,2]
[404091681,1769815838751,-151.0,0.00023288,2]
[404091682,1769815838760,-151.461106,0.00023288,2]
[404091683,1769815838769,-151.0,0.00023288,2]
[404091684,1769815838779,-151.0,0.00023288,2]
[404091685,1769815838788,-151.0,0.00023288,2]
[404091686,1769815838796,-151.0,0.00023288,2]
[404091687,1769815838806,-151.0,0.00023288,2]
[404091688,1769815838815,-151.0,0.00023288,2]
[404091689,1769815838824,-151.0,0.00023288,2]
[404091690,1769815838833,-151.0,0.00023288,2]
[404091691,1769815838842,-151.0,0.00023288,2]
[404091692,1769815838851,-151.0,0.00023288,2]
[404091693,1769815838860,-151.0,0.00023288,2]
[404091694,1769815838870,-151.0,0.00023288,2]
[404091695,1769815838879,-151.0,0.00023288,2]
[404091696,1769815838888,-151.0,0.00023288,2]
[404091697,1769815838897,-151.0,0.00023288,2]
[404091698,1769815838906,-155.016819,0.00023288,2]
[404091699,1769815838915,-178.797839,0.00023288,2]
[404091700,1769815838924,-151.0,0.00023288,2]
[404091701,1769815838932,-151.0,0.00023288,2]
[404091702,1769815838942,-296.467561,0.00023288,2]
[404091703,1769815838951,-151.0,0.00023288,2]
[404091704,1769815838960,-151.0,0.00023288,2]
[404091705,1769815838969,-151.0,0.00023288,2]
[404091706,1769815838978,-151.0,0.00023288,2]
[404091707,1769815838987,-322.108189,0.00023288,2]
[404091708,1769815838996,-322.108189,0.00023288,2]
[404091709,1769815839005,-322.108189,0.00023288,2]
[404091710,1769815839014,-322.108189,0.00023288,2]
[404091711,1769815839023,-322.108189,0.00023288,2]
[404091712,1769815839032,-322.108189,0.00023288,2]
[404091713,1769815839040,-322.108189,0.00023288,2]
[404091714,1769815839049,-322.108189,0.00023288,2]
[404091715,1769815839058,-322.108189,0.00023288,2]
[404091716,1769815839067,-322.108189,0.00023288,2]
[404091717,1769815839076,-322.108189,0.00023288,2]
[404091718,1769815839084,-322.108189,0.00023288,2]
[404091719,1769815839093,-322.108189,0.00023288,2]
[404091720,1769815839102,-322.108189,0.00023288,2]
[404091721,1769815839112,-322.108189,0.00023288,2]
[404091722,1769815839121,-322.108189,0.00023288,2]
[404091723,1769815839130,-151.0,0.00023288,2]
[404091724,1769815839140,-151.0,0.00023288,2]
[404091725,1769815839149,-151.0,0.00023288,2]
[404091726,1769815839158,-151.0,0.00023288,2]
[404091727,1769815839172,-151.0,0.00023288,2]
[404091728,1769815839180,-151.0,0.00023288,2]
[404091729,1769815839189,-151.0,0.00023288,2]
[404091730,1769815839198,-151.0,0.00023288,2]
[404091731,1769815839210,-151.0,0.00023288,2]
[404091732,1769815839219,-291.219433,0.00023288,2]
[404091733,1769815839228,-151.0,0.00023288,2]
[404091734,1769815839237,-151.0,0.00023288,2]
[404091735,1769815839247,-151.0,0.00023288,2]
[404091736,1769815839256,-152.349574,0.00023288,2]
[404091737,1769815839265,-153.436502,0.00023288,2]
[404091738,1769815839274,-151.0,0.00023288,2]
[404091739,1769815839283,-235.330686,0.00023288,2]
[404091740,1769815839291,-235.330686,0.00023288,2]
[404091741,1769815839300,-235.330686,0.00023288,2]
[404091742,1769815839309,-235.330686,0.00023288,2]
[404091743,1769815839318,-235.330686,0.00023288,2]
[404091744,1769815839326,-235.330686,0.00023288,2]
[404091745,1769815839335,-235.330686,0.00023288,2]
[404091746,1769815839344,-235.330686,0.00023288,2]
[404091747,1769815839353,-251.006869,0.00023288,2]
[404091748,1769815839363,-235.330686,0.00023288,2]
[404091749,1769815839371,-202.47,0.00023288,2]
[404091750,1769815839380,-151.0,0.00023288,2]
[404091751,1769815839389,-151.0,0.00023288,2]
[404091752,1769815839398,-151.0,0.00023288,2]
[404091753,1769815839407,-151.0,0.00023288,2]
[404091754,1769815839416,-151.0,0.00023288,2]
[404091755,1769815839424,-158.128719,0.00023288,2]
[404091756,1769815839433,-151.0,0.00023288,2]
[404091757,1769815839442,-151.0,0.00023288,2]
[404091758,1769815839450,-151.0,0.00023288,2]
[404091759,1769815839459,-234.686702,0.00023288,2]
[404091760,1769815839468,-234.686702,0.00023288,2]
[404091761,1769815839476,-234.686702,0.00023288,2]
[404091762,1769815839485,-234.686702,0.00023288,2]
[404091763,1769815839495,-234.686702,0.00023288,2]
[404091764,1769815839504,-234.686702,0.00023288,2]
[404091765,1769815839514,-234.686702,0.00023288,2]
[404091766,1769815839523,-234.686702,0.00023288,2]
[404091767,1769815839533,-234.686702,0.00023288,2]
[404091768,1769815839543,-234.686702,0.00023288,2]
[404091769,1769815839552,-234.686702,0.00023288,2]
[404091770,1769815839561,-234.686702,0.00023288,2]
[404091771,1769815839571,-151.0,0.00023288,2]
[404091772,1769815839581,-151.0,0.00023288,2]
[404091773,1769815839590,-151.0,0.00023288,2]
[404091774,1769815839599,-151.0,0.00023288,2]
[404091775,1769815839609,-151.0,0.00023288,2]
[404091776,1769815839618,-151.0,0.00023288,2]
[404091777,1769815839628,-151.0,0.00023288,2]
[404091778,1769815839638,-151.0,0.00023288,2]
[404091779,1769815839647,-151.0,0.00023288,2]
[404091780,1769815839656,-151.0,0.00023288,2]
[404091781,1769815839667,-172.741523,0.00023288,2]
[404091782,1769815839677,-205.439022,0.00023288,2]
[404091783,1769815839687,-151.0,0.00023288,2]
[404091784,1769815839698,-151.0,0.00023288,2]
[404091785,1769815839708,-151.0,0.00023288,2]
[404091786,1769815839717,-151.0,0.00023288,2]
[404091787,1769815839727,-568.1628941,0.00023288,2]
[404091788,1769815839741,-556.8626919,0.00023288,2]
[404091789,1769815839751,-1125.025586,0.00023288,2]
[404091790,1769815839760,-1125.025586,0.00023288,2]
[404091791,1769815839769,-1125.025586,0.00023288,2]
[404091792,1769815839779,-1125.025586,0.00023288,2]
[404091793,1769815839788,-1107.57439992,0.00023288,2]
[404091896,1769815840931,-17.45118608,0.00023288,2]
[404091899,1769815840941,-1125.025586,0.00023288,2]
[404091900,1769815840950,-690.86492034,0.00023288,2]
[404091903,1769815840962,-434.16066566,0.00023288,2]
[404091905,1769815840971,-1125.025586,0.00023288,2]
[404091907,1769815840980,-1125.025586,0.00023288,2]
[404091909,1769815840989,-1125.025586,0.00023288,2]
[404091911,1769815840998,-1125.025586,0.00023288,2]
[404091913,1769815841007,-1125.025586,0.00023288,2]
[404091915,1769815841016,-1125.025586,0.00023288,2]
[404091917,1769815841025,-1125.025586,0.00023288,2]
[404091919,1769815841034,-1125.025586,0.00023288,2]
[404091921,1769815841043,-152.749672,0.00023288,2]
[404091923,1769815841052,-151.0,0.00023288,2]
[404091925,1769815841062,-151.0,0.00023288,2]
[404091927,1769815841071,-151.0,0.00023288,2]
[404091929,1769815841080,-151.0,0.00023288,2]
[404091931,1769815841089,-151.0,0.00023288,2]
[404091932,1769815841099,-151.0,0.00023288,2]
[404091934,1769815841108,-245.550852,0.00023288,2]
[404091936,1769815841117,-151.0,0.00023288,2]
[404091938,1769815841126,-205.822561,0.00023288,2]
[404091940,1769815841135,-151.0,0.00023288,2]
[404091942,1769815841144,-151.0,0.00023288,2]
[404091944,1769815841154,-158.0,0.00023288,7]
[404091946,1769815841163,-30493.59378886,0.00023288,7]
[404091974,1769815843759,-439.52813813,0.00023055,2]
[404091976,1769815844009,-133.4212252,0.00023055,2]
[404091977,1769815844019,-1698.36375912,0.00023278,10]
[404091979,1769815846593,-950.0,0.00022,14]
[404091981,1769815846602,-1066.93253402,0.00023178,2]
[404091986,1769815846759,-979.47940387,0.00023178,2]
[404091987,1769815846769,-3959.61624088,0.00023278,10]
[404091988,1769815846779,-249.123254,0.00023288,2]
[404091989,1769815846917,-249.123254,0.00023288,2]
[404091990,1769815846927,-249.123254,0.00023288,2]
[404091991,1769815846936,-249.123254,0.00023288,2]
[404091992,1769815846946,-249.123254,0.00023288,2]
[404091993,1769815846955,-168.2603322,0.00023288,2]
[404092053,1769817031629,-1746.78365951,0.00021302,2]
[404092054,1769817031639,-625.70498662,0.00021517,2]
[404092055,1769817031648,-9552.5346571,0.00021927,2]
[404092056,1769817031657,-158.0,0.00022,2]
[404092057,1769817031667,-300.0,0.00022007,2]
[404092058,1769817031676,-1200.0,0.00022007,2]
[404092059,1769817031685,-13400.6116785,0.00022008,2]
[404092060,1769817031694,-300.0,0.00022466,2]
[404092061,1769817031706,-450.0,0.00023014,2]
[404092062,1769817031715,-158.0,0.00023014,7]
[404092063,1769817031724,-500.0,0.00023014,7]
[404092064,1769817031733,-500.0,0.00023014,7]
[404092065,1769817031742,-500.0,0.00023014,7]
[404092066,1769817031751,-224.55748242,0.00023014,7]
[404092067,1769817031760,-150.38470582,0.00023014,7]
[404092068,1769817031769,-200.39911368,0.00023014,7]
[404092069,1769817031778,-500.0,0.00023014,7]
[404092070,1769817031787,-500.0,0.00023014,7]
[404092071,1769817031796,-500.0,0.00023014,7]
[404092072,1769817031805,-500.0,0.00023151,7]
[404092073,1769817031814,-500.0,0.00023151,7]
[404092074,1769817031823,-500.0,0.00023151,7]
[404092075,1769817031832,-500.0,0.00023151,7]
[404092076,1769817031841,-500.0,0.00023151,7]
[404092077,1769817031850,-500.0,0.00023151,7]
[404092078,1769817031859,-5568.78474354,0.00023187,2]
[404092079,1769817031868,-177.0,0.00023208,2]
[404092080,1769817031877,-2811.01,0.00023278,10]
[404092081,1769817031886,-268.75089407,0.00023287,2]
[404092082,1769817031896,-450.0,0.00023288,7]
[404092083,1769817031905,-450.0,0.00023288,7]
[404092084,1769817031914,-300.0,0.00023288,7]
[404092085,1769817031923,-500.0,0.00023288,7]
[404092086,1769817031931,-500.0,0.00023288,7]
[404092087,1769817031940,-500.0,0.00023288,7]
[404092088,1769817031949,-38000.0,0.00023288,7]
[404092089,1769817031958,-38000.0,0.00023288,7]
[404092090,1769817031967,-38000.0,0.00023288,7]
[404092091,1769817031976,-151.0,0.00023288,2]
[404092092,1769817031985,-151.0,0.00023288,2]
[404092093,1769817031994,-151.0,0.00023288,2]
[404092094,1769817032003,-151.0,0.00023288,2]
[404092095,1769817032012,-151.0,0.00023288,2]
[404092096,1769817032021,-249.085,0.00023288,3]
[404092097,1769817032030,-151.0,0.00023288,2]
[404092098,1769817032040,-621.671218,0.00023288,2]
[404092099,1769817032049,-621.671218,0.00023288,2]
[404092100,1769817032058,-621.671218,0.00023288,2]
[404092101,1769817032067,-621.671218,0.00023288,2]
[404092102,1769817032076,-621.671218,0.00023288,2]
[404092103,1769817032085,-621.671218,0.00023288,2]
[404092104,1769817032094,-621.671218,0.00023288,2]
[404092105,1769817032103,-621.671218,0.00023288,2]
[404092106,1769817032111,-621.671218,0.00023288,2]
[404092107,1769817032120,-621.671218,0.00023288,2]
[404092108,1769817032129,-621.671218,0.00023288,2]
[404092109,1769817032140,-621.671218,0.00023288,2]
[404092110,1769817032149,-621.671218,0.00023288,2]
[404092111,1769817032158,-621.671218,0.00023288,2]
[404092112,1769817032167,-621.671218,0.00023288,2]
[404092113,1769817032176,-621.671218,0.00023288,2]
[404092114,1769817032185,-151.0,0.00023288,2]
[404092115,1769817032194,-151.0,0.00023288,2]
[404092116,1769817032203,-151.0,0.00023288,2]
[404092117,1769817032211,-151.0,0.00023288,2]
[404092118,1769817032220,-151.0,0.00023288,2]
[404092119,1769817032229,-231.432749,0.00023288,2]
[404092120,1769817032237,-151.0,0.00023288,2]
[404092121,1769817032246,-151.0,0.00023288,2]
[404092122,1769817032255,-174.798799,0.00023288,2]
[404092123,1769817032264,-174.798799,0.00023288,2]
[404092124,1769817032272,-174.798799,0.00023288,2]
[404092125,1769817032281,-174.798799,0.00023288,2]
[404092126,1769817032290,-174.798799,0.00023288,2]
[404092127,1769817032299,-174.798799,0.00023288,2]
[404092128,1769817032308,-174.798799,0.00023288,2]
[404092129,1769817032317,-174.798799,0.00023288,2]
[404092130,1769817032326,-174.798799,0.00023288,2]
[404092131,1769817032335,-174.798799,0.00023288,2]
[404092132,1769817032343,-174.798799,0.00023288,2]
[404092133,1769817032352,-174.798799,0.00023288,2]
[404092134,1769817032361,-151.0,0.00023288,2]
[404092135,1769817032370,-151.0,0.00023288,2]
[404092136,1769817032379,-151.0,0.00023288,2]
[404092137,1769817032387,-151.0,0.00023288,2]
[404092138,1769817032404,-151.0,0.00023288,2]
[404092139,1769817032415,-151.0,0.00023288,2]
[404092140,1769817032424,-151.0,0.00023288,2]
[404092141,1769817032433,-151.0,0.00023288,2]
[404092142,1769817032442,-151.054102,0.00023288,2]
[404092143,1769817032451,-151.0,0.00023288,2]
[404092144,1769817032460,-222.938362,0.00023288,2]
[404092145,1769817032469,-222.938362,0.00023288,2]
[404092146,1769817032479,-222.938362,0.00023288,2]
[404092147,1769817032488,-222.938362,0.00023288,2]
[404092148,1769817032498,-222.938362,0.00023288,2]
[404092149,1769817032510,-222.938362,0.00023288,2]
[404092150,1769817032520,-222.938362,0.00023288,2]
[404092151,1769817032529,-222.938362,0.00023288,2]
[404092152,1769817032538,-222.938362,0.00023288,2]
[404092153,1769817032549,-222.938362,0.00023288,2]
[404092154,1769817032559,-222.938362,0.00023288,2]
[404092155,1769817032568,-222.938362,0.00023288,2]
[404092156,1769817032578,-151.0,0.00023288,2]
[404092157,1769817032588,-151.0,0.00023288,2]
[404092158,1769817032597,-151.0,0.00023288,2]
[404092159,1769817032608,-151.0,0.00023288,2]
[404092160,1769817032618,-151.0,0.00023288,2]
[404092161,1769817032627,-151.0,0.00023288,2]
[404092163,1769817032637,-151.0,0.00023288,2]
[404092165,1769817032647,-151.0,0.00023288,2]
[404092167,1769817032656,-151.0,0.00023288,2]
[404092169,1769817032665,-167.842176,0.00023288,2]
[404092170,1769817032674,-151.0,0.00023288,2]
[404092171,1769817032683,-151.0,0.00023288,2]
[404092172,1769817032694,-151.0,0.00023288,2]
[404092173,1769817032704,-151.0,0.00023288,2]
[404092174,1769817032713,-151.0,0.00023288,2]
[404092175,1769817032722,-151.0,0.00023288,2]
[404092176,1769817032731,-239.82379,0.00023288,2]
[404092177,1769817032741,-178.429424,0.00023288,2]
[404092178,1769817032751,-178.429424,0.00023288,2]
[404092179,1769817032760,-178.429424,0.00023288,2]
[404092180,1769817032769,-178.429424,0.00023288,2]
[404092181,1769817032779,-151.0,0.00023288,2]
[404092182,1769817032789,-178.429424,0.00023288,2]
[404092183,1769817032798,-178.429424,0.00023288,2]
[404092184,1769817032808,-178.429424,0.00023288,2]
[404092185,1769817032817,-151.0,0.00023288,2]
[404092186,1769817032827,-151.0,0.00023288,2]
[404092187,1769817032836,-151.0,0.00023288,2]
[404092188,1769817032845,-162.056211,0.00023288,2]
[404092189,1769817032855,-162.056211,0.00023288,2]
[404092190,1769817032864,-162.056211,0.00023288,2]
[404092191,1769817032874,-162.056211,0.00023288,2]
[404092192,1769817032883,-162.056211,0.00023288,2]
[404092193,1769817032893,-162.056211,0.00023288,2]
[404092194,1769817032902,-162.056211,0.00023288,2]
[404092195,1769817032912,-162.056211,0.00023288,2]
[404092196,1769817032921,-162.056211,0.00023288,2]
[404092197,1769817032931,-151.0,0.00023288,2]
[404092198,1769817032940,-151.0,0.00023288,2]
[404092199,1769817032950,-162.056211,0.00023288,2]
[404092200,1769817032960,-151.0,0.00023288,2]
[404092201,1769817032970,-162.056211,0.00023288,2]
[404092202,1769817032979,-162.056211,0.00023288,2]
[404092203,1769817032990,-151.0,0.00023288,2]
[404092204,1769817032999,-151.0,0.00023288,2]
[404092205,1769817033008,-151.0,0.00023288,2]
[404092206,1769817033018,-151.0,0.00023288,2]
[404092207,1769817033028,-178.861607,0.00023288,2]
[404092208,1769817033038,-151.0,0.00023288,2]
[404092209,1769817033048,-151.0,0.00023288,2]
[404092210,1769817033057,-151.0,0.00023288,2]
[404092211,1769817033070,-151.0,0.00023288,2]
[404092212,1769817033080,-177.602982,0.00023288,2]
[404092213,1769817033089,-468.092539,0.00023288,2]
[404092214,1769817033099,-468.092539,0.00023288,2]
[404092215,1769817033109,-468.092539,0.00023288,2]